[Event "Titled Tuesday Blitz August 08 Late 2023"]
[White "Reprintsev, Alexander"]
[Black "Pantev, Veselin"]
[WhiteFideId "14100541"]
[BlackFideId "2901390"]
[WhiteElo "2501"]
[BlackElo "2618"]
[Result "0-1"]
[Round "7"]
[TimeControl "180+1"]
[Date "2023.08.08"]
[WhiteClock "0:00:00"]
[BlackClock "0:00:43"]
[Board "57"]

1. e4 {[%clk 0:03:00]}  c6 {[%clk 0:02:59]} 2. Nc3 {[%clk 0:02:59]}  d5 {[%clk 0:03:00]} 3. Nf3 {[%clk 0:02:59]}  dxe4 {[%clk 0:03:00]} 4. Nxe4 {[%clk 0:02:59]}  Nf6 {[%clk 0:03:01]} 5. Qe2 {[%clk 0:02:58]}  Nxe4 {[%clk 0:03:01]} 6. Qxe4 {[%clk 0:02:58]}  Qd5 {[%clk 0:03:01]} 7. Qe3 {[%clk 0:02:50]}  Qe6 {[%clk 0:02:48]} 8. b3 {[%clk 0:02:42]}  Qxe3+ {[%clk 0:02:40]} 9. fxe3 {[%clk 0:02:41]}  Nd7 {[%clk 0:02:37]} 10. Bb2 {[%clk 0:02:40]}  f6 {[%clk 0:02:37]} 11. g4 {[%clk 0:02:33]}  Nb6 {[%clk 0:02:27]} 12. g5 {[%clk 0:02:31]}  Bg4 {[%clk 0:02:24]} 13. Bg2 {[%clk 0:02:28]}  Bxf3 {[%clk 0:02:22]} 14. Bxf3 {[%clk 0:02:27]}  fxg5 {[%clk 0:02:22]} 15. Rg1 {[%clk 0:02:20]}  h6 {[%clk 0:02:21]} 16. Bh5+ {[%clk 0:02:18]}  Kd7 {[%clk 0:02:21]} 17. O-O-O {[%clk 0:02:16]}  Nd5 {[%clk 0:02:21]} 18. Bg6 {[%clk 0:02:05]}  Nf6 {[%clk 0:02:20]} 19. e4 {[%clk 0:02:02]}  e6 {[%clk 0:02:14]} 20. c4 {[%clk 0:01:57]}  Be7 {[%clk 0:02:01]} 21. e5 {[%clk 0:01:56]}  Ne8 {[%clk 0:02:00]} 22. d4 {[%clk 0:01:52]}  Nc7 {[%clk 0:02:00]} 23. a3 {[%clk 0:01:26]}  Rhf8 {[%clk 0:01:57]} 24. b4 {[%clk 0:01:24]}  Rf4 {[%clk 0:01:53]} 25. Rg2 {[%clk 0:01:16]}  a6 {[%clk 0:01:50]} 26. Kc2 {[%clk 0:01:15]}  b5 {[%clk 0:01:50]} 27. Bc1 {[%clk 0:01:10]}  Rf3 {[%clk 0:01:42]} 28. Be4 {[%clk 0:01:07]}  Rf7 {[%clk 0:01:38]} 29. d5 {[%clk 0:01:02]}  cxd5 {[%clk 0:01:36]} 30. cxd5 {[%clk 0:01:02]}  Nxd5 {[%clk 0:01:34]} 31. Rxd5+ {[%clk 0:01:01]}  exd5 {[%clk 0:01:32]} 32. Bxd5 {[%clk 0:01:00]}  Rc8+ {[%clk 0:01:32]} 33. Kb3 {[%clk 0:00:50]}  Rf5 {[%clk 0:01:21]} 34. Bb2 {[%clk 0:00:50]}  Rc7 {[%clk 0:01:10]} 35. Rd2 {[%clk 0:00:48]}  Ke8 {[%clk 0:01:10]} 36. Be4 {[%clk 0:00:43]}  Rf4 {[%clk 0:01:03]} 37. Bg6+ {[%clk 0:00:43]}  Kf8 {[%clk 0:01:03]} 38. Rd3 {[%clk 0:00:33]}  g4 {[%clk 0:01:01]} 39. Bd4 {[%clk 0:00:21]}  Rf3 {[%clk 0:01:00]} 40. Bb6 {[%clk 0:00:15]}  Rxd3+ {[%clk 0:00:58]} 41. Bxd3 {[%clk 0:00:15]}  Rb7 {[%clk 0:00:55]} 42. Bd4 {[%clk 0:00:11]}  Kf7 {[%clk 0:00:54]} 43. Bf5 {[%clk 0:00:10]}  h5 {[%clk 0:00:52]} 44. e6+ {[%clk 0:00:10]}  Kf8 {[%clk 0:00:52]} 45. Bg6 {[%clk 0:00:09]}  h4 {[%clk 0:00:48]} 46. Bf5 {[%clk 0:00:07]}  g3 {[%clk 0:00:47]} 47. hxg3 {[%clk 0:00:07]}  hxg3 {[%clk 0:00:47]} 48. Be4 {[%clk 0:00:07]}  Rc7 {[%clk 0:00:43]} 49. Be5 {[%clk 0:00:06]}  Rc4 {[%clk 0:00:43]} 50. Bf3 {[%clk 0:00:00]}  Bf6 {[%clk 0:00:43]} 0-1


[Site "https://www.chess.com"]

[Event "Titled Tuesday Blitz August 08 Late 2023"]
[White "Ozates, Tuna"]
[Black "Prithu Gupta"]
[WhiteFideId "6354521"]
[BlackFideId "46618546"]
[WhiteElo "2611"]
[BlackElo "2465"]
[Result "0-1"]
[Round "7"]
[TimeControl "180+1"]
[Date "2023.08.08"]
[WhiteClock "0:00:00"]
[BlackClock "0:00:17"]
[Board "58"]

1. e4 {[%clk 0:03:00]}  e5 {[%clk 0:02:59]} 2. Nc3 {[%clk 0:03:01]}  Nf6 {[%clk 0:02:59]} 3. g3 {[%clk 0:03:01]}  Be7 {[%clk 0:02:56]} 4. Bg2 {[%clk 0:03:01]}  O-O {[%clk 0:02:57]} 5. d3 {[%clk 0:03:01]}  c6 {[%clk 0:02:57]} 6. Nf3 {[%clk 0:03:00]}  d6 {[%clk 0:02:57]} 7. O-O {[%clk 0:03:00]}  Be6 {[%clk 0:02:49]} 8. Ng5 {[%clk 0:02:59]}  Nbd7 {[%clk 0:02:49]} 9. h3 {[%clk 0:02:58]}  d5 {[%clk 0:02:45]} 10. Nxe6 {[%clk 0:02:52]}  fxe6 {[%clk 0:02:45]} 11. Qe2 {[%clk 0:02:43]}  b5 {[%clk 0:02:44]} 12. h4 {[%clk 0:02:37]}  b4 {[%clk 0:02:43]} 13. Nd1 {[%clk 0:02:37]}  Bc5 {[%clk 0:02:43]} 14. Be3 {[%clk 0:02:32]}  Qe7 {[%clk 0:02:42]} 15. Bxc5 {[%clk 0:02:32]}  Nxc5 {[%clk 0:02:37]} 16. a3 {[%clk 0:01:41]}  b3 {[%clk 0:02:30]} 17. c3 {[%clk 0:01:41]}  d4 {[%clk 0:02:26]} 18. c4 {[%clk 0:01:37]}  h5 {[%clk 0:02:22]} 19. Bh3 {[%clk 0:01:32]}  Qe8 {[%clk 0:02:14]} 20. Kg2 {[%clk 0:01:26]}  Qg6 {[%clk 0:02:13]} 21. f3 {[%clk 0:01:23]}  Qh6 {[%clk 0:02:10]} 22. Nf2 {[%clk 0:01:18]}  Qe3 {[%clk 0:02:00]} 23. Rfe1 {[%clk 0:01:15]}  Qxe2 {[%clk 0:02:00]} 24. Rxe2 {[%clk 0:01:16]}  Kf7 {[%clk 0:01:54]} 25. g4 {[%clk 0:01:11]}  hxg4 {[%clk 0:01:53]} 26. fxg4 {[%clk 0:01:11]}  g5 {[%clk 0:01:53]} 27. hxg5 {[%clk 0:00:52]}  Nh7 {[%clk 0:01:53]} 28. Kg3 {[%clk 0:00:50]}  Nxg5 {[%clk 0:01:50]} 29. Bg2 {[%clk 0:00:51]}  Kg7 {[%clk 0:01:49]} 30. Rh1 {[%clk 0:00:51]}  Rh8 {[%clk 0:01:48]} 31. Rh5 {[%clk 0:00:51]}  Nf7 {[%clk 0:01:42]} 32. Rd2 {[%clk 0:00:45]}  Rag8 {[%clk 0:01:35]} 33. Bf3 {[%clk 0:00:38]}  Kf6 {[%clk 0:01:31]} 34. Kh4 {[%clk 0:00:32]}  Ng5 {[%clk 0:00:55]} 35. Bd1 {[%clk 0:00:32]}  Kg6 {[%clk 0:00:55]} 36. Nh3 {[%clk 0:00:26]}  Nxh3 {[%clk 0:00:43]} 37. Kxh3 {[%clk 0:00:26]}  Rxh5+ {[%clk 0:00:42]} 38. gxh5+ {[%clk 0:00:26]}  Kh6 {[%clk 0:00:43]} 39. Rf2 {[%clk 0:00:24]}  Rg1 {[%clk 0:00:42]} 40. Bg4 {[%clk 0:00:20]}  Nxd3 {[%clk 0:00:40]} 41. Rf6+ {[%clk 0:00:20]}  Kg7 {[%clk 0:00:39]} 42. Rg6+ {[%clk 0:00:20]}  Kh7 {[%clk 0:00:36]} 43. Kh4 {[%clk 0:00:11]}  Nf2 {[%clk 0:00:27]} 44. Bxe6 {[%clk 0:00:04]}  Rxg6 {[%clk 0:00:27]} 45. Bf5 {[%clk 0:00:05]}  Kh6 {[%clk 0:00:21]} 46. hxg6 {[%clk 0:00:02]}  Nd3 {[%clk 0:00:18]} 47. Kg4 {[%clk 0:00:01]}  Nxb2 {[%clk 0:00:17]} 48. Kf3 {[%clk 0:00:00]}  Nxc4 {[%clk 0:00:17]} 0-1


[Site "https://www.chess.com"]

[Event "Titled Tuesday Blitz August 08 Late 2023"]
[White "Pert, Richard G"]
[Black "Delorme, Axel"]
[WhiteFideId "404748"]
[BlackFideId "632023"]
[WhiteElo "2592"]
[BlackElo "2476"]
[Result "0-1"]
[Round "7"]
[TimeControl "180+1"]
[Date "2023.08.08"]
[WhiteClock "0:00:00"]
[BlackClock "0:00:07"]
[Board "59"]

1. d4 {[%clk 0:03:00]}  d5 {[%clk 0:02:59]} 2. Bg5 {[%clk 0:02:57]}  f6 {[%clk 0:02:58]} 3. Bd2 {[%clk 0:02:56]}  e5 {[%clk 0:02:54]} 4. e4 {[%clk 0:02:50]}  exd4 {[%clk 0:02:40]} 5. exd5 {[%clk 0:02:48]}  Qxd5 {[%clk 0:02:39]} 6. Nf3 {[%clk 0:02:47]}  Nc6 {[%clk 0:02:31]} 7. Be2 {[%clk 0:02:35]}  Bg4 {[%clk 0:02:24]} 8. h3 {[%clk 0:02:31]}  Bf5 {[%clk 0:02:22]} 9. O-O {[%clk 0:02:24]}  O-O-O {[%clk 0:02:18]} 10. Na3 {[%clk 0:02:14]}  Bxa3 {[%clk 0:02:06]} 11. bxa3 {[%clk 0:02:13]}  Bxc2 {[%clk 0:02:07]} 12. Qxc2 {[%clk 0:02:06]}  d3 {[%clk 0:02:07]} 13. Bxd3 {[%clk 0:02:02]}  Qxd3 {[%clk 0:02:08]} 14. Qb2 {[%clk 0:02:00]}  Nge7 {[%clk 0:02:04]} 15. Rab1 {[%clk 0:01:59]}  Qa6 {[%clk 0:02:03]} 16. Rfc1 {[%clk 0:01:55]}  Rd3 {[%clk 0:01:52]} 17. Be1 {[%clk 0:01:33]}  Rxa3 {[%clk 0:01:33]} 18. Nd2 {[%clk 0:01:28]}  Rxa2 {[%clk 0:01:28]} 19. Qc3 {[%clk 0:01:27]}  Rd8 {[%clk 0:01:17]} 20. Nc4 {[%clk 0:01:25]}  Nd4 {[%clk 0:01:06]} 21. Kh2 {[%clk 0:00:58]}  Ne2 {[%clk 0:01:02]} 22. Qe3 {[%clk 0:00:53]}  Nxc1 {[%clk 0:00:59]} 23. Rxc1 {[%clk 0:00:53]}  Nd5 {[%clk 0:00:52]} 24. Qf3 {[%clk 0:00:48]}  Ra1 {[%clk 0:00:45]} 25. Qf5+ {[%clk 0:00:35]}  Kb8 {[%clk 0:00:43]} 26. Rxa1 {[%clk 0:00:28]}  Qxa1 {[%clk 0:00:44]} 27. Ba5 {[%clk 0:00:26]}  Qd4 {[%clk 0:00:38]} 28. Qc2 {[%clk 0:00:15]}  b6 {[%clk 0:00:37]} 29. Bd2 {[%clk 0:00:15]}  Qc5 {[%clk 0:00:28]} 30. Qe4 {[%clk 0:00:12]}  a5 {[%clk 0:00:18]} 31. Be1 {[%clk 0:00:10]}  Nb4 {[%clk 0:00:15]} 32. g3 {[%clk 0:00:08]}  Qd4 {[%clk 0:00:13]} 33. Qe6 {[%clk 0:00:07]}  Qd5 {[%clk 0:00:12]} 34. Qe2 {[%clk 0:00:07]}  Nc6 {[%clk 0:00:11]} 35. Ne3 {[%clk 0:00:07]}  Qd3 {[%clk 0:00:09]} 36. Qf3 {[%clk 0:00:07]}  Nd4 {[%clk 0:00:09]} 37. Qg4 {[%clk 0:00:07]}  Qe2 {[%clk 0:00:09]} 38. Qxg7 {[%clk 0:00:05]}  Nf3+ {[%clk 0:00:08]} 39. Kg2 {[%clk 0:00:05]}  Nxe1+ {[%clk 0:00:08]} 40. Kg1 {[%clk 0:00:05]}  Nf3+ {[%clk 0:00:08]} 41. Kg2 {[%clk 0:00:05]}  Ne1+ {[%clk 0:00:04]} 42. Kg1 {[%clk 0:00:06]}  Nd3 {[%clk 0:00:05]} 43. Qxf6 {[%clk 0:00:05]}  Qxf2+ {[%clk 0:00:05]} 44. Qxf2 {[%clk 0:00:05]}  Nxf2 {[%clk 0:00:06]} 45. Kxf2 {[%clk 0:00:05]}  a4 {[%clk 0:00:07]} 46. Nc4 {[%clk 0:00:05]}  b5 {[%clk 0:00:07]} 47. Na5 {[%clk 0:00:05]}  a3 {[%clk 0:00:07]} 48. Nc6+ {[%clk 0:00:04]}  Kc8 {[%clk 0:00:08]} 49. Nb4 {[%clk 0:00:00]}  Rd4 {[%clk 0:00:07]} 0-1


[Site "https://www.chess.com"]

[Event "Titled Tuesday Blitz August 08 Late 2023"]
[White "Nilsen, Tobias Lang"]
[Black "Gasparyan, David"]
[WhiteFideId "1521624"]
[BlackFideId "13311980"]
[WhiteElo "2444"]
[BlackElo "2590"]
[Result "0-1"]
[Round "7"]
[TimeControl "180+1"]
[Date "2023.08.08"]
[WhiteClock "0:00:24"]
[BlackClock "0:00:09"]
[Board "60"]

1. e4 {[%clk 0:03:00]}  d6 {[%clk 0:02:56]} 2. d4 {[%clk 0:03:00]}  Nf6 {[%clk 0:02:55]} 3. Nc3 {[%clk 0:03:00]}  Nbd7 {[%clk 0:02:55]} 4. Nf3 {[%clk 0:03:00]}  g6 {[%clk 0:02:54]} 5. Be2 {[%clk 0:02:59]}  Bg7 {[%clk 0:02:54]} 6. O-O {[%clk 0:03:00]}  e5 {[%clk 0:02:53]} 7. h3 {[%clk 0:02:55]}  O-O {[%clk 0:02:53]} 8. Be3 {[%clk 0:02:55]}  c6 {[%clk 0:02:51]} 9. dxe5 {[%clk 0:02:55]}  dxe5 {[%clk 0:02:49]} 10. Qd6 {[%clk 0:02:55]}  Re8 {[%clk 0:02:47]} 11. Bc4 {[%clk 0:02:43]}  Bf8 {[%clk 0:02:28]} 12. Qd3 {[%clk 0:02:42]}  h6 {[%clk 0:02:22]} 13. a4 {[%clk 0:02:37]}  Qc7 {[%clk 0:02:10]} 14. Qd2 {[%clk 0:02:36]}  Nc5 {[%clk 0:01:59]} 15. Bxh6 {[%clk 0:02:32]}  Ncxe4 {[%clk 0:01:56]} 16. Nxe4 {[%clk 0:02:32]}  Nxe4 {[%clk 0:01:57]} 17. Qe3 {[%clk 0:02:32]}  Nd6 {[%clk 0:01:15]} 18. Ba2 {[%clk 0:02:21]}  Nf5 {[%clk 0:01:14]} 19. Qg5 {[%clk 0:02:20]}  Bxh6 {[%clk 0:01:07]} 20. Qxg6+ {[%clk 0:02:20]}  Bg7 {[%clk 0:00:48]} 21. Ng5 {[%clk 0:02:18]}  Nh6 {[%clk 0:00:37]} 22. Qh7+ {[%clk 0:01:58]}  Kf8 {[%clk 0:00:37]} 23. g4 {[%clk 0:01:35]}  Qe7 {[%clk 0:00:37]} 24. Nf3 {[%clk 0:01:23]}  e4 {[%clk 0:00:29]} 25. Rae1 {[%clk 0:01:21]}  Qd6 {[%clk 0:00:22]} 26. g5 {[%clk 0:00:58]}  Bf5 {[%clk 0:00:21]} 27. Rd1 {[%clk 0:00:45]}  Qf4 {[%clk 0:00:13]} 28. gxh6 {[%clk 0:00:40]}  Bxh7 {[%clk 0:00:13]} 29. hxg7+ {[%clk 0:00:38]}  Kxg7 {[%clk 0:00:14]} 30. Nd4 {[%clk 0:00:35]}  Re5 {[%clk 0:00:12]} 31. Kh1 {[%clk 0:00:35]}  Rg5 {[%clk 0:00:11]} 32. Rg1 {[%clk 0:00:35]}  Kh6 {[%clk 0:00:09]} 33. Rxg5 {[%clk 0:00:34]}  Qxg5 {[%clk 0:00:10]} 34. Bxf7 {[%clk 0:00:32]}  Qf4 {[%clk 0:00:10]} 35. Bb3 {[%clk 0:00:31]}  Qxf2 {[%clk 0:00:09]} 36. Rg1 {[%clk 0:00:24]}  e3 {[%clk 0:00:09]} 0-1


[Site "https://www.chess.com"]

[Event "Titled Tuesday Blitz August 08 Late 2023"]
[White "Nathan, Nitish"]
[Black "Bilan, Danila"]
[WhiteFideId "30927870"]
[BlackFideId "24161918"]
[WhiteElo "2432"]
[BlackElo "2588"]
[Result "0-1"]
[Round "7"]
[TimeControl "180+1"]
[Date "2023.08.08"]
[WhiteClock "0:02:16"]
[BlackClock "0:00:36"]
[Board "61"]

1. d4 {[%clk 0:03:00]}  d5 {[%clk 0:02:59]} 2. Bf4 {[%clk 0:02:59]}  Nf6 {[%clk 0:02:59]} 3. e3 {[%clk 0:02:59]}  c5 {[%clk 0:03:00]} 4. Nf3 {[%clk 0:02:59]}  Nc6 {[%clk 0:03:00]} 5. Nbd2 {[%clk 0:02:59]}  Bg4 {[%clk 0:02:59]} 6. c3 {[%clk 0:02:58]}  Qb6 {[%clk 0:02:52]} 7. Qb3 {[%clk 0:02:52]}  c4 {[%clk 0:02:52]} 8. Qc2 {[%clk 0:02:50]}  e6 {[%clk 0:02:51]} 9. e4 {[%clk 0:02:51]}  Be7 {[%clk 0:02:48]} 10. e5 {[%clk 0:02:49]}  Nh5 {[%clk 0:02:42]} 11. Be3 {[%clk 0:02:47]}  Bf5 {[%clk 0:02:38]} 12. Qc1 {[%clk 0:02:46]}  f6 {[%clk 0:02:34]} 13. h3 {[%clk 0:02:44]}  fxe5 {[%clk 0:02:03]} 14. dxe5 {[%clk 0:02:38]}  Qc7 {[%clk 0:01:53]} 15. g4 {[%clk 0:02:38]}  Nxe5 {[%clk 0:01:48]} 16. Nxe5 {[%clk 0:02:36]}  Qxe5 {[%clk 0:01:46]} 17. Nf3 {[%clk 0:02:33]}  Qe4 {[%clk 0:01:34]} 18. Bg2 {[%clk 0:02:31]}  Nf4 {[%clk 0:01:32]} 19. O-O {[%clk 0:02:24]}  Nxg2 {[%clk 0:01:01]} 20. Nd2 {[%clk 0:02:20]}  Qd3 {[%clk 0:00:47]} 21. Kxg2 {[%clk 0:02:18]}  Bg6 {[%clk 0:00:44]} 22. Nf3 {[%clk 0:02:18]}  Be4 {[%clk 0:00:41]} 23. Rd1 {[%clk 0:02:17]}  Qe2 {[%clk 0:00:41]} 24. Kh2 {[%clk 0:02:15]}  Qxf3 {[%clk 0:00:38]} 25. Rg1 {[%clk 0:02:15]}  Bd6+ {[%clk 0:00:38]} 26. Rg3 {[%clk 0:02:15]}  Bxg3+ {[%clk 0:00:37]} 27. fxg3 {[%clk 0:02:16]}  Qg2# {[%clk 0:00:36]} 0-1


[Site "https://www.chess.com"]

[Event "Titled Tuesday Blitz August 08 Late 2023"]
[White "Rabiega, Robert"]
[Black "Ambartsumova, Karina"]
[WhiteFideId "4601475"]
[BlackFideId "4166299"]
[WhiteElo "2412"]
[BlackElo "2586"]
[Result "0-1"]
[Round "7"]
[TimeControl "180+1"]
[Date "2023.08.08"]
[WhiteClock "0:00:23"]
[BlackClock "0:00:14"]
[Board "62"]

1. e4 {[%clk 0:03:00]}  e5 {[%clk 0:02:49]} 2. Nf3 {[%clk 0:03:00]}  Nc6 {[%clk 0:02:48]} 3. Bc4 {[%clk 0:03:00]}  Nf6 {[%clk 0:02:44]} 4. d3 {[%clk 0:03:00]}  h6 {[%clk 0:02:43]} 5. O-O {[%clk 0:03:00]}  d6 {[%clk 0:02:41]} 6. c3 {[%clk 0:02:59]}  g5 {[%clk 0:02:39]} 7. d4 {[%clk 0:02:57]}  g4 {[%clk 0:02:15]} 8. dxe5 {[%clk 0:02:43]}  gxf3 {[%clk 0:02:13]} 9. exf6 {[%clk 0:02:44]}  Ne5 {[%clk 0:02:02]} 10. Bb3 {[%clk 0:02:35]}  Qxf6 {[%clk 0:02:02]} 11. g3 {[%clk 0:02:17]}  Bh3 {[%clk 0:01:40]} 12. Re1 {[%clk 0:02:12]}  O-O-O {[%clk 0:01:40]} 13. Bf4 {[%clk 0:02:12]}  h5 {[%clk 0:01:35]} 14. Nd2 {[%clk 0:02:12]}  h4 {[%clk 0:01:22]} 15. Bxe5 {[%clk 0:01:51]}  dxe5 {[%clk 0:01:13]} 16. Qxf3 {[%clk 0:01:51]}  Qh6 {[%clk 0:01:08]} 17. Nc4 {[%clk 0:01:36]}  hxg3 {[%clk 0:01:05]} 18. fxg3 {[%clk 0:01:31]}  Bc5+ {[%clk 0:01:04]} 19. Ne3 {[%clk 0:01:12]}  Rd3 {[%clk 0:00:53]} 20. Kf2 {[%clk 0:01:02]}  f5 {[%clk 0:00:31]} 21. Be6+ {[%clk 0:01:01]}  Qxe6 {[%clk 0:00:28]} 22. exf5 {[%clk 0:00:59]}  Bxf5 {[%clk 0:00:27]} 23. Rad1 {[%clk 0:00:58]}  Rxh2+ {[%clk 0:00:22]} 24. Kg1 {[%clk 0:00:58]}  Rh8 {[%clk 0:00:20]} 25. Rxd3 {[%clk 0:00:48]}  Bxd3 {[%clk 0:00:20]} 26. b4 {[%clk 0:00:47]}  Bb6 {[%clk 0:00:19]} 27. Kg2 {[%clk 0:00:46]}  e4 {[%clk 0:00:18]} 28. Qg4 {[%clk 0:00:39]}  Qxg4 {[%clk 0:00:16]} 29. Nxg4 {[%clk 0:00:40]}  a6 {[%clk 0:00:15]} 30. a4 {[%clk 0:00:41]}  a5 {[%clk 0:00:15]} 31. Rd1 {[%clk 0:00:38]}  Re8 {[%clk 0:00:14]} 32. Re1 {[%clk 0:00:37]}  Re6 {[%clk 0:00:14]} 33. Ne3 {[%clk 0:00:36]}  Bxe3 {[%clk 0:00:14]} 34. Rxe3 {[%clk 0:00:36]}  axb4 {[%clk 0:00:15]} 35. cxb4 {[%clk 0:00:36]}  Kd7 {[%clk 0:00:15]} 36. g4 {[%clk 0:00:36]}  Kd6 {[%clk 0:00:14]} 37. Kg3 {[%clk 0:00:37]}  Ke5 {[%clk 0:00:15]} 38. Re1 {[%clk 0:00:35]}  Kd4 {[%clk 0:00:14]} 39. Kf4 {[%clk 0:00:34]}  Rf6+ {[%clk 0:00:14]} 40. Kg5 {[%clk 0:00:34]}  Rf2 {[%clk 0:00:13]} 41. Rc1 {[%clk 0:00:29]}  c6 {[%clk 0:00:14]} 42. b5 {[%clk 0:00:26]}  cxb5 {[%clk 0:00:14]} 43. axb5 {[%clk 0:00:27]}  Bxb5 {[%clk 0:00:14]} 44. Rb1 {[%clk 0:00:27]}  Bc6 {[%clk 0:00:14]} 45. Rd1+ {[%clk 0:00:27]}  Ke5 {[%clk 0:00:15]} 46. Kg6 {[%clk 0:00:27]}  e3 {[%clk 0:00:15]} 47. Re1 {[%clk 0:00:27]}  e2 {[%clk 0:00:15]} 48. g5 {[%clk 0:00:27]}  Kf4 {[%clk 0:00:14]} 49. Kf6 {[%clk 0:00:27]}  Ke3+ {[%clk 0:00:14]} 50. Ke5 {[%clk 0:00:27]}  Kd2 {[%clk 0:00:14]} 51. g6 {[%clk 0:00:23]}  Kxe1 {[%clk 0:00:14]} 0-1


[Site "https://www.chess.com"]

[Event "Titled Tuesday Blitz August 08 Late 2023"]
[White "Sadilek, Peter"]
[Black "Tejedor Fuente, Enrique"]
[WhiteFideId "1616439"]
[BlackFideId "2299100"]
[WhiteElo "2482"]
[BlackElo "2727"]
[Result "0-1"]
[Round "7"]
[TimeControl "180+1"]
[Date "2023.08.08"]
[WhiteClock "0:01:23"]
[BlackClock "0:01:56"]
[Board "66"]

1. c4 {[%clk 0:02:58]}  b6 {[%clk 0:02:57]} 2. Nf3 {[%clk 0:02:55]}  Bb7 {[%clk 0:02:58]} 3. g3 {[%clk 0:02:56]}  Bxf3 {[%clk 0:02:55]} 4. exf3 {[%clk 0:02:57]}  c5 {[%clk 0:02:56]} 5. d4 {[%clk 0:02:56]}  cxd4 {[%clk 0:02:57]} 6. Qxd4 {[%clk 0:02:56]}  Nc6 {[%clk 0:02:57]} 7. Qd1 {[%clk 0:02:48]}  e6 {[%clk 0:02:54]} 8. Bg2 {[%clk 0:02:47]}  g6 {[%clk 0:02:54]} 9. Bd2 {[%clk 0:02:45]}  Bg7 {[%clk 0:02:54]} 10. Bc3 {[%clk 0:02:46]}  Nf6 {[%clk 0:02:53]} 11. O-O {[%clk 0:02:45]}  O-O {[%clk 0:02:53]} 12. f4 {[%clk 0:02:46]}  d5 {[%clk 0:02:50]} 13. cxd5 {[%clk 0:02:46]}  Nxd5 {[%clk 0:02:46]} 14. Bxg7 {[%clk 0:02:46]}  Kxg7 {[%clk 0:02:47]} 15. Nd2 {[%clk 0:02:28]}  Rc8 {[%clk 0:02:42]} 16. Rc1 {[%clk 0:02:21]}  Nce7 {[%clk 0:02:37]} 17. Qa4 {[%clk 0:02:18]}  Rxc1 {[%clk 0:02:32]} 18. Rxc1 {[%clk 0:02:19]}  Qb8 {[%clk 0:02:32]} 19. Qd4+ {[%clk 0:02:06]}  Nf6 {[%clk 0:02:30]} 20. Ne4 {[%clk 0:02:05]}  Ng8 {[%clk 0:02:25]} 21. g4 {[%clk 0:01:49]}  Qxf4 {[%clk 0:02:22]} 22. Rc3 {[%clk 0:01:34]}  e5 {[%clk 0:01:56]} 23. Qb4 {[%clk 0:01:23]} 0-1


[Site "https://www.chess.com"]

[Event "Titled Tuesday Blitz August 08 Late 2023"]
[White "Gaal, Zsoka"]
[Black "Alex_Sahakyan2006"]
[WhiteFideId "777765"]
[WhiteElo "2482"]
[BlackElo "2705"]
[Result "0-1"]
[Round "7"]
[TimeControl "180+1"]
[Date "2023.08.08"]
[WhiteClock "0:01:20"]
[BlackClock "0:01:57"]
[Board "67"]

1. Nf3 {[%clk 0:03:00]}  d5 {[%clk 0:02:59]} 2. g3 {[%clk 0:02:58]}  Bg4 {[%clk 0:03:00]} 3. Bg2 {[%clk 0:02:58]}  Nd7 {[%clk 0:03:00]} 4. O-O {[%clk 0:02:57]}  e6 {[%clk 0:03:00]} 5. h3 {[%clk 0:02:57]}  Bxf3 {[%clk 0:03:01]} 6. Bxf3 {[%clk 0:02:47]}  Ngf6 {[%clk 0:03:01]} 7. c4 {[%clk 0:02:46]}  c6 {[%clk 0:02:59]} 8. cxd5 {[%clk 0:02:43]}  exd5 {[%clk 0:03:00]} 9. d3 {[%clk 0:02:41]}  Bc5 {[%clk 0:02:59]} 10. Nc3 {[%clk 0:02:40]}  Qc7 {[%clk 0:02:59]} 11. Bf4 {[%clk 0:02:39]}  Bd6 {[%clk 0:02:58]} 12. Bd2 {[%clk 0:02:29]}  O-O {[%clk 0:02:50]} 13. Rc1 {[%clk 0:02:29]}  Qb6 {[%clk 0:02:50]} 14. Qc2 {[%clk 0:02:20]}  Rfe8 {[%clk 0:02:42]} 15. e4 {[%clk 0:02:06]}  dxe4 {[%clk 0:02:36]} 16. dxe4 {[%clk 0:02:07]}  Ne5 {[%clk 0:02:29]} 17. Be2 {[%clk 0:01:56]}  Rad8 {[%clk 0:02:24]} 18. Be3 {[%clk 0:01:56]}  Bc5 {[%clk 0:02:13]} 19. Na4 {[%clk 0:01:54]}  Bxe3 {[%clk 0:02:13]} 20. Nxb6 {[%clk 0:01:52]}  Bxb6 {[%clk 0:02:14]} 21. Rcd1 {[%clk 0:01:46]}  Rc8 {[%clk 0:02:12]} 22. Kg2 {[%clk 0:01:42]}  h6 {[%clk 0:02:09]} 23. f4 {[%clk 0:01:42]}  Ng6 {[%clk 0:02:07]} 24. Bf3 {[%clk 0:01:41]}  h5 {[%clk 0:02:03]} 25. e5 {[%clk 0:01:35]}  Nd5 {[%clk 0:02:03]} 26. Bxd5 {[%clk 0:01:33]}  cxd5 {[%clk 0:02:04]} 27. Qf5 {[%clk 0:01:31]}  h4 {[%clk 0:02:03]} 28. Rxd5 {[%clk 0:01:25]}  hxg3 {[%clk 0:01:57]} 29. Rd7 {[%clk 0:01:20]}  Nh4+ {[%clk 0:01:57]} 0-1


[Site "https://www.chess.com"]

[Event "Titled Tuesday Blitz August 08 Late 2023"]
[White "Vovk, Orest"]
[Black "Chen, Max"]
[WhiteFideId "14113490"]
[BlackFideId "2622440"]
[WhiteElo "2462"]
[BlackElo "2582"]
[Result "1-0"]
[Round "7"]
[TimeControl "180+1"]
[Date "2023.08.08"]
[WhiteClock "0:00:29"]
[BlackClock "0:00:04"]
[Board "74"]

1. g4 {[%clk 0:02:48]}  d5 {[%clk 0:02:50]} 2. Bg2 {[%clk 0:02:48]}  Bxg4 {[%clk 0:02:45]} 3. c4 {[%clk 0:02:48]}  c6 {[%clk 0:02:26]} 4. Qb3 {[%clk 0:02:46]}  Qd7 {[%clk 0:02:20]} 5. cxd5 {[%clk 0:02:41]}  cxd5 {[%clk 0:02:20]} 6. Bxd5 {[%clk 0:02:37]}  Be6 {[%clk 0:02:07]} 7. Bxe6 {[%clk 0:02:33]}  fxe6 {[%clk 0:02:08]} 8. Nf3 {[%clk 0:02:32]}  Nc6 {[%clk 0:02:08]} 9. Nc3 {[%clk 0:02:30]}  Nf6 {[%clk 0:02:06]} 10. d3 {[%clk 0:02:28]}  O-O-O {[%clk 0:01:53]} 11. Be3 {[%clk 0:02:22]}  Kb8 {[%clk 0:01:52]} 12. Bf4+ {[%clk 0:02:19]}  Ka8 {[%clk 0:01:47]} 13. Ne5 {[%clk 0:02:03]}  Nxe5 {[%clk 0:01:36]} 14. Bxe5 {[%clk 0:02:04]}  Nd5 {[%clk 0:01:35]} 15. Nb5 {[%clk 0:01:58]}  Rc8 {[%clk 0:01:21]} 16. e4 {[%clk 0:01:47]}  Nb6 {[%clk 0:01:13]} 17. Ke2 {[%clk 0:01:34]}  Rg8 {[%clk 0:01:04]} 18. Rhc1 {[%clk 0:01:23]}  a6 {[%clk 0:00:55]} 19. a4 {[%clk 0:00:58]}  g6 {[%clk 0:00:51]} 20. a5 {[%clk 0:00:52]}  Rxc1 {[%clk 0:00:33]} 21. Rxc1 {[%clk 0:00:42]}  Nc8 {[%clk 0:00:19]} 22. Rxc8+ {[%clk 0:00:35]}  Qxc8 {[%clk 0:00:16]} 23. Nc7+ {[%clk 0:00:34]}  Kb8 {[%clk 0:00:13]} 24. Qb6 {[%clk 0:00:33]}  Bg7 {[%clk 0:00:09]} 25. Nb5+ {[%clk 0:00:29]}  Bxe5 {[%clk 0:00:04]} 26. Qa7# {[%clk 0:00:29]} 1-0


[Site "https://www.chess.com"]